Cogmind - Beta 13 @@@ ROGUE MODE // 2024.04.23 @ 20:34:09 Player: Kaitocain Result: Destroyed by G-47 Trooper with Particle Gun Performance ------------- Evolutions (2) 1000 Regions Visited (3) 600 Robots Destroyed (32) 160 Value Destroyed (1055) 1055 Prototype IDs (1) 20 Alien Tech Used (0) 0 Bonus (0) 0 TOTAL SCORE: 2835 Bonus ------- None Cogmind --------- Core Integrity 0/550 Matter 251/300 Energy 138/150 System Corruption 0% Temperature Cool (47) Movement Walking (190) Ox1 Location -8/Materials Parts ------- > --- POWER (2) -------- Light Angular Momentum Engine > --- PROPULSION (3) --- Aluminum Leg Carbon-fiber Leg Cesium-ion Thruster > --- UTILITY (3) ------ Visual Processing Unit Terrain Scanner Advanced Terrain Scan Processor > --- WEAPON (3) ------- Particle Gun Gauss Rifle > --- INVENTORY (5) ---- Aluminum Leg Peak State ------------ > --- POWER ------------ Light Angular Momentum Engine > --- PROPULSION ------- Aluminum Leg Carbon-fiber Leg Cesium-ion Thruster > --- UTILITY ---------- Visual Processing Unit Terrain Scanner Advanced Terrain Scan Processor > --- WEAPON ----------- Particle Gun Gauss Rifle > --- INVENTORY -------- Aluminum Leg [Rating: 25] Favorites ----------- Power Light Ion Engine Engine Light Ion Engine Power Core Light Nuclear Core Propulsion Aluminum Leg Treads Light Treads Leg Aluminum Leg Flight Unit Cesium-ion Thruster Utility Small Storage Unit Device Terrain Scanner Storage Small Storage Unit Processor Visual Processing Unit Protection Light Armor Plating Weapon Assault Rifle Energy Gun Improved Medium Laser Ballistic Gun Assault Rifle Ballistic Cannon Light Cannon Special Weapon Welding Torch Slashing Weapon Great Axe Build | -11 -10 -9 -8 ------- Run | Yrd Mat Mat Mat Slots Evolved 4 | . . 2 2 Power 1 | . . . 1 Propulsion 1 | . . 1 . Utility 1 | . . 1 . Weapon 1 | . . . 1 Parts Attached 33 | 5 3 8 17 Power 6 | 1 . 1 4 Engine 4 | 1 . 1 2 Core 2 | . . . 2 Reactor . | . . . . Propulsion 9 | 2 . 3 4 Treads 4 | . . 3 1 Leg 4 | 2 . . 2 Wheel . | . . . . Hover . | . . . . Flight 1 | . . . 1 Utility 7 | . 2 2 3 Device 2 | . . . 2 Storage 2 | . 1 1 . Processor 2 | . . 1 1 Hackware . | . . . . Protection 1 | . 1 . . Artifact . | . . . . Weapon 11 | 2 1 2 6 Energy Gun 4 | . 1 2 1 Energy Cannon . | . . . . Ballistic Gun 4 | 2 . . 2 Ballistic Cannon 1 | . . . 1 Launcher . | . . . . Special Weapon 1 | . . . 1 Impact Weapon . | . . . . Slashing Weapon 1 | . . . 1 Piercing Weapon . | . . . . Special Melee Weapon . | . . . . Unidentified Prototypes 1 | . . 1 . Parts Lost 23 | . 4 2 17 Power 5 | . 1 . 4 Propulsion 5 | . . 1 4 Utility 4 | . 1 . 3 Weapon 9 | . 2 1 6 Highest Loss Streak 11 | . 2 1 11 To Critical Strikes . | . . . . Average Slot Usage (%) 75 | . 88 73 68 Engine 6 | . 14 3 5 Treads 10 | . . 18 9 Leg 13 | . 28 12 5 Flight 1 | . . . 3 Device 1 | . . . 4 Storage 11 | . 14 14 6 Processor 7 | . . 3 14 Energy Gun 12 | . 8 20 8 Ballistic Gun 7 | . 19 . 7 Naked Turns . | . . . . Heaviest Build 23 | 7 15 15 23 Greatest Support 60 | 20 20 20 60 Greatest Overweight (x) 5 | . . 1 5 Average Overweight (x) . | . . . . Largest Inventory Capacity 8 | 5 8 8 8 Average Capacity 7 | 5 8 8 6 Most Carried 8 | 5 4 8 6 Average Carried 3 | 2 3 4 2 Final Capacity 8 | 5 8 8 5 Final Carried 4 | 4 4 4 1 Class Distribution -------------------- 61% | Mutant 27% | Scavenger-Skirmisher 11% | Scavenger-Mutant Dominant Class ---------------- Mutant | -10/Materials Mutant | -9/Materials Scavenger-Skirmisher | -8/Materials Resources | -11 -10 -9 -8 ----------- Run | Yrd Mat Mat Mat Matter Collected 786 | 208 209 116 253 Remotely . | . . . . Salvage Created 1252 | . 172 641 439 Parts 80 | . 14 44 22 Haulers Intercepted . | . . . . Recyclers Shooed 3 | . 3 . . Parts Field Recycled . | . . . . Retrieved Matter . | . . . . Parts Self-Destructed . | . . . . Prevented . | . . . . Kills | -11 -10 -9 -8 ------- Run | Yrd Mat Mat Mat Combat Hostiles Destroyed 23 | . 4 11 8 Melee 3 | . . . 3 Guns 20 | . 4 11 5 Classes Destroyed 8 | . 2 3 3 Worker 4 | . 1 3 . Builder 1 | . . . 1 Tunneler 1 | . . . 1 Watcher 3 | . . 3 . Grunt 16 | . 4 5 7 Brawler 2 | . . 2 . Sentry 4 | . . 4 . Hunter 1 | . . . 1 Best Kill Streak 6 | . 5 6 3 Combat Bots Only 4 | . 4 4 2 Max Kills in Single Turn 2 | . 1 2 2 Gunslinging 1 | . . 1 . Exploded . | . . . . Melee 1 | . . . 1 Uniques/NPCs Destroyed . | . . . . Combat | -11 -10 -9 -8 -------- Run | Yrd Mat Mat Mat Hostile Shots Fired 271 | . 67 55 149 Missed 75 | . 20 18 37 Damage Taken 3012 | . 559 660 1793 Core 866 | . 103 202 561 Absorbed by Shields . | . . . . Core Remaining (%) 69 | 100 58 49 . Volleys Fired 93 | . 21 36 36 Largest 3 | . 2 2 3 Hottest 114 | . 60 112 114 Shots Fired 174 | . 39 71 64 Gun 163 | . 39 71 53 Cannon 11 | . . . 11 Launcher . | . . . . Special . | . . . . Kinetic 81 | . 36 . 45 Thermal 82 | . . 63 19 Explosive . | . . . . Electromagnetic 11 | . 3 8 . Robot Hit Streak 9 | . 5 9 9 Robot Miss Streak 5 | . 5 4 4 Penetration Max 1 | . . . 1 Secondary Targets 5 | . 3 2 . Max Gunslinging Chain 1 | . 1 1 . Shots Hit Robots 112 | . 23 42 47 Core Hits 55 | . 12 23 20 Critical Kills . | . . . . Critical Parts Destroyed . | . . . . Critical Strikes 10 | . . 8 2 Burn 9 | . . 8 1 Sever 1 | . . . 1 Melee Attacks 15 | . . . 15 Impact . | . . . . Slashing 15 | . . . 15 Piercing . | . . . . Sneak Attacks 1 | . . . 1 Combat Hostiles . | . . . . Follow-up Attacks . | . . . . Damage Inflicted 2228 | 7 326 739 1156 Guns 1664 | . 313 730 621 Cannons 130 | . . . 130 Explosions . | . . . . Melee 401 | . . . 401 Ramming 33 | 7 13 9 4 Kinetic 916 | . 313 . 603 Thermal 811 | . . 663 148 Explosive . | . . . . Electromagnetic 67 | . . 67 . Impact . | . . . . Slashing 401 | . . . 401 Piercing . | . . . . Highest Corruption . | . . . . Average Corruption . | . . . . Corruption Purged . | . . . . Corruption Blocked . | . . . . Overload Shots . | . . . . Overflow Damage 62 | . . . 62 Projectiles . | . . . . Explosions . | . . . . Melee 62 | . . . 62 Knockbacks 3 | 1 . . 2 Impact 1 | 1 . . . Kinetic 2 | . . . 2 Secondary . | . . . . Self-Inflicted Damage . | . . . . Shots . | . . . . Rammed 1 | . . 1 . Targets Rammed 10 | 1 3 5 1 Kicked 9 | 1 3 4 1 Crushed . | . . . . Highest Temperature 527 | . 115 527 335 Average Temperature 125 | . 49 161 112 Received Heat Transfer 1413 | . 345 141 927 Effects 7 | . . 6 1 Shutdowns 2 | . . 2 . Matter Decay 2 | . . 1 1 Damage (minor) 1 | . . 1 . Damage (core) 2 | . . 2 . Siege Activations . | . . . . Robots Corrupted . | . . . . Combat Hostiles . | . . . . Parts Fried . | . . . . Impact Corruptions . | . . . . Robots Melted . | . . . . Combat Hostiles . | . . . . Parts Melted 2 | . . 2 . Heat Transferred 2590 | . . 2146 444 Parts Sabotaged . | . . . . Parts Stolen . | . . . . Parts Stripped . | . . . . Power Chain Reactions . | . . . . Alert | -11 -10 -9 -8 ------- Run | Yrd Mat Mat Mat Peak Influence 391 | . 127 391 144 Initial 86 | . . 44 86 Average 103 | . 74 179 78 Maximum Alert Level 1 | . . 1 . Low Security (%) 89 | 100 100 67 100 Level 1 10 | . . 32 . Level 2 . | . . . . Level 3 . | . . . . Level 4 . | . . . . Level 5 . | . . . . High Security . | . . . . Max Security . | . . . . Squads Dispatched 7 | . 2 2 3 Investigation 3 | . 1 1 1 Extermination . | . . . . Reinforcement 3 | . 1 1 1 Assault . | . . . . Garrison 1 | . . . 1 Intercept . | . . . . Searches Triggered . | . . . . Construction Impeded . | . . . . Haulers Reinforced . | . . . . Active Scanning Responses . | . . . . Cargo Convoy Interrupts . | . . . . Stealth | -11 -10 -9 -8 --------- Run | Yrd Mat Mat Mat Distress Signals 2 | . . 2 . Communications Jammed . | . . . . Distress Signals . | . . . . Times Spotted 41 | . 8 20 13 Peak Tracking Total 4 | . 4 4 4 Tactical Retreats . | . . . . Traps | -11 -10 -9 -8 ------- Run | Yrd Mat Mat Mat Traps Triggered 2 | . . 1 1 Indirectly . | . . . . Trap Hack Attempts . | . . . . Triggered . | . . . . Disarmed . | . . . . Reprogrammed . | . . . . Reused . | . . . . Traps Extracted . | . . . . Installed . | . . . . Triggered . | . . . . Machines | -11 -10 -9 -8 ---------- Run | Yrd Mat Mat Mat Machines Disabled 3 | . 1 . 2 Max in Single Turn 1 | . 1 . 1 Machines Repaired . | . . . . Machines Dismantled . | . . . . Machines Sabotaged . | . . . . Overloaded Fab Kills . | . . . . Hacking | -11 -10 -9 -8 --------- Run | Yrd Mat Mat Mat Machines Accessed 5 | . 3 . 2 Terminals 5 | . 3 . 2 Fabricators . | . . . . Repair Stations . | . . . . Recycling Units . | . . . . Scanalyzers . | . . . . Garrison Access . | . . . . Total Hacks 14 | . 10 . 4 Successful 9 | . 6 . 3 Failed 5 | . 4 . 1 Catastrophic 1 | . 1 . . Database Lockouts . | . . . . Manual 1 | . 1 . . Terminals 14 | . 10 . 4 Fabricators . | . . . . Repair Stations . | . . . . Recycling Units . | . . . . Scanalyzers . | . . . . Garrison Access . | . . . . Terminal Hacks 9 | . 6 . 3 Record 7 | . 5 . 2 Robot Analysis 1 | . 1 . . Recall Reinforcements 1 | . . . 1 Fabricator Hacks . | . . . . Repair Station Hacks . | . . . . Recycling Unit Hacks . | . . . . Scanalyzer . | . . . . Garrison Access Hacks . | . . . . Unauthorized Hacks . | . . . . Terminals . | . . . . Fabricators . | . . . . Repair Stations . | . . . . Recycling Units . | . . . . Scanalyzers . | . . . . Garrison Access . | . . . . Data Cores Recovered . | . . . . Used . | . . . . Hacking Detections 4 | . 2 . 2 Full Trace Events 1 | . 1 . . Feedback Events . | . . . . Feedback Blocked . | . . . . Robot Schematics Acquired . | . . . . Robots Built . | . . . . Authchips . | . . . . Time . | . . . . Total Robot Build Rating . | . . . . Part Schematics Acquired . | . . . . Parts Built . | . . . . Authchips . | . . . . Time . | . . . . Total Part Build Rating . | . . . . Parts Repaired . | . . . . Time . | . . . . Parts Recycled . | . . . . Recycled Matter . | . . . . Retrieved Matter . | . . . . Retrieved Components . | . . . . Parts Scanalyzed . | . . . . Part Schematics Acquired . | . . . . Parts Damaged . | . . . . Bothacking | -11 -10 -9 -8 ------------ Run | Yrd Mat Mat Mat Used RIF Installer . | . . . . Robots Hacked . | . . . . Non-combat . | . . . . Combat . | . . . . Robot Hacks Applied . | . . . . Relay Couplers Released . | . . . . Fabnet Peak Effective % . | . . . . Robots Rewired . | . . . . Allies Hacked . | . . . . Hacks Repelled . | . . . . Allies | -11 -10 -9 -8 -------- Run | Yrd Mat Mat Mat Total Allies . | . . . . Largest Group . | . . . . Highest-Rated Group . | . . . . Highest-Rated Ally . | . . . . Total Orders . | . . . . Ally Attacks . | . . . . Total Damage . | . . . . Kills . | . . . . Allies Corrupted . | . . . . Allies Melted . | . . . . Intel | -11 -10 -9 -8 ------- Run | Yrd Mat Mat Mat Robot Analysis Total 1 | . 1 . . Derelict Logs Recovered . | . . . . Drone Launches . | . . . . Drone Recoveries . | . . . . Exploration | -11 -10 -9 -8 ------------- Run | Yrd Mat Mat Mat Turns Passed 1555 | 123 348 499 585 Spaces Moved 867 | 108 233 259 267 Core 73 | 30 . . 43 Treads 177 | . . 75 102 Legs 566 | 78 233 184 71 Wheels . | . . . . Hover . | . . . . Flight 51 | . . . 51 Fastest Speed 50 | 50 120 120 100 Average Speed 136 | 100 120 142 159 Slowest Speed 300 | 120 120 190 300 Overloaded Moves . | . . . . Propulsion Burnouts . | . . . . Robots Hopped . | . . . . Cave-ins Triggered . | . . . . Exploration Rate (%) 21 | 6 33 22 24 Regions Visited 3 Branch Regions . Pre-discovered Areas . | . . . . Known Exits Taken . | . . . . Unknown Exits Taken 3 | 1 1 1 . Scrap Searched . | . . . . Spaces Dug . | . . . . Terrain Destroyed . | . . . . Melee . | . . . . Projectile . | . . . . AOE . | . . . . Terrain Rammed . | . . . . Walls Destroyed . | . . . . Machines Disabled . | . . . . Actions | -11 -10 -9 -8 --------- Run | Yrd Mat Mat Mat Total 1040 | 122 262 316 340 Wait . | . . . . Move 864 | 107 232 258 267 Hop . | . . . . Pick Up 24 | 9 3 8 4 Fast Attach 10 | . . . 10 Attach 23 | 5 3 8 7 Detach . | . . . . Swap . | . . . . Drop 1 | . . 1 . Fire 93 | . 21 36 36 Melee 15 | . . . 15 Ram . | . . . . Kick 9 | 1 3 4 1 Crush 1 | . . 1 . Escape Stasis . | . . . . Rewire . | . . . . Trap . | . . . . Miscellaneous . | . . . . Route ------- -11/Scrapyard -10/Materials -9/Materials -8/Materials History --------- Turn | Location | Event 7 | -11/Scrapyard | Discovered new exit (range 15) 124 | -11/Scrapyard | Entered Materials 312 | -10/Materials | Build established: Mutant 427 | -10/Materials | Discovered new exit (range 12) 472 | -10/Materials | Entered another Materials area 472 | -9/Materials | Evolved 2 slots: Propulsion x1, Utility x1 866 | -9/Materials | Core integrity fell below 50% 953 | -9/Materials | Discovered new exit (range 7) 971 | -9/Materials | Entered another Materials area 971 | -8/Materials | Evolved 2 slots: Power x1, Weapon x1 1186 | -8/Materials | Core integrity fell below 50% 1200 | -8/Materials | Core integrity fell below 20% 1228 | -8/Materials | Lost 11 parts (2p3n3u3w) 1316 | -8/Materials | Lost 5 parts (2p1n2w) 1523 | -8/Materials | Garrison activated, responded to threat 1556 | -8/Materials | Destroyed by G-47 Trooper with Particle Gun Last Messages --------------- Kicked W-25 Informer. Connecting with Terminal... >>Recall(Reinforcements) Establishing remote squad link... No tasked reinforcement squads found. Slug penetrates T-07 Excavator. T-07 Excavator destroyed. [Achievement: Please Form A Line] Slug penetrates Wall. W-25 Informer calls for garrison support. ALERT: Activating Garrison Access M001. R-06 Scavenger collects Seismic Detector. Critical hit (Burn: +37). Slug penetrates G-50 Soldier. K-01 Serf cleans the Electrolysis Chamber. G-50 Soldier destroyed. K-01 Serf collects debris. Slug penetrates Wall. K-01 Serf collects debris. Slug penetrates G-47 Trooper. Map ----- +----------------------------------------------------+ | ?????????????????????????????????????????????????? | | ?????????????????????????????????????????????????? | | #????????????????????????????????????????????????? | | ???????????????????????????????????????????????? | | ??##????????????#????????????????????????????????? | | ##?#?????????????????????????????????????????????? | | ## ? ???????????????????????????????????????????? | | ## " ??? ? ? ??#??#?????????????????????????????? | | ##?T? ???""??? #??????#??????????????????????????? | | ## "?"?"?""??"??###???#??????????????????????????? | | ##? """ ?"" ???#?####??#??????????????????????? | | ## ? ? #???#####??#??????????????????????? | | ###########?#########?###??#?????????????????????? | | #?### ###########?##? ???????????????????? | | ##### ?##########?##?????????????????????? | | ############??#####?? ???????????????????? | | ## T #########?# ??? #?????????????? | | ## """ ####?#####??#? ???????????????? | | ## """ ! # ? ???+? #?????????????? | | ## """ # " " ?"???? ???????????????? | | ## # "?" "?"???????????????????? | | ## """ # " ? "???#???#?????????????? | | ########## """ # ?# ?#? ???????????? | | + """ ######??#####? ???? ???????????? | | # ############## = # ""?????????? | | #######+### @ g=%!/k ""?????????? | | g * #? ???????????? | | # ????????????? | | ##????????????? | | u #?????????????? | | #################%= ############????????????? | | #####?########### #??##???#???????????????? | | ###?########?#### ##?###?#????????????????? | | ####?#??#########?## ##?##??????????????? | | ? ?? ? ? #### ########???? ???????????????? | | ? ??? ? ?? ##?# # ??#??##????????????????? | | ?? ? ? ?? ?#??# # + ? ????????????????? | | ? ?????? ? ?? ?#?# # ?? ?# ???????????????????? | | ????"?????? ??"??### # ? ? #????????????????????? | | ??????????? ??? ?### #???R???????????????????????? | | ???????????????????# ????????????????????????????? | | ???????????????????? ????????????????????????????? | | ???????????????????? ????????????????????????????? | | ???????????????????? ????????????????????????????? | | ?????????????????????????????????????????????????? | | ?????????????????????????????????????????????????? | | ?????????????????????????????????????????????????? | | ?????????????????????????????????????????????????? | | ?????????????????????????????????????????????????? | | ?????????????????????????????????????????????????? | +----------------------------------------------------+ Best States ------------- Heat Dissipation 31 Energy Generation 19 Energy Capacity 185 Matter Stores 350 Matter Capacity 350 Sight Range 18 Terrain Scan Range 14 Terrain Scan Density 210 Armor Coverage 150 Evasion (%) 55 Recoil Reduction 3 Item Schematics ----------------- None Robot Schematics ------------------ None Fabricated ------------ Nothing Alien Tech Used ----------------- None Achievements -------------- Please Form A Line Challenges ------------ None Game ------ Seed RemoteMappingStick Manual? 0 Play Time 00:18:28 Cumulative 1.5 hours Start 2024.04.23 @ 20:15:08 End 2024.04.23 @ 20:34:09 Sessions 1 Manual Loads 0 Difficulty Rogue Special Mode None Game No. 7 Rogue 7 Adventurer 0 Explorer 0 Win Type - Total 0 Types 0/0/0/0/0/0/0/0/0 Lore% 1 Gallery% 6 Achievement% 4 Wizard Run 0 Options --------- Layout 1 ASCII 0 Keyboard 1 Movement Arrows Keybinds 0 Fullscreen 1 Font 24/Cog Map View 50x35 Zoom Use 0% Tactical HUD 0 Map Filters NONE Filters BRIGHTNESS(80)|SATURATION(70) Steam 1 RUN: 2519c789-a509-4fc9-b0d2-99de6597ca65